{"text_format":"3","workbook":"xlsx","n_sheets":1,"sheets":["FÜRDŐSZOBA-FELÚJÍTÁSI KÖLTSÉGEK"],"not_rendered":{"defined_names":3},"read":"whole","date_system":"1900"}

{"sheet":"FÜRDŐSZOBA-FELÚJÍTÁSI KÖLTSÉGEK","index":0,"n_rows":23,"n_cols":10,"rows_kept":23,"merged":[[1,1,2,3],[2,4,2,6],[2,7,2,9],[21,1,21,3],[21,4,21,6],[21,7,21,9],[22,1,22,3],[22,4,22,6],[22,7,22,9]]}
[null,"Fürdőszoba-felújítási költség kiszámítása"]
[null,"MEGJEGYZÉS: A táblázat különböző oszlopaiban látható, ha a tényleges összeg túllépi a becsült költséget. A piros számok a becsült értéket meghaladó (negatív), a fekete számok az érték alatti költséget jelenítik meg. "]
[{"$nulls":4},"Részletezett költség (Ft)",null,null,"Teljes költség (Ft)"]
[null,"Terület","Tételek","Mennyiség","Becsült","Tényleges","Különbség","Becsült ","Tényleges ","Különbség "]
[null,"Kád/zuhanykabin","Kád, öntöttvas, 150 cm, normál kivitelű",1,{"v":250,"d":"250.00 Ft"},{"$f":"RANDBETWEEN(E5+2,E5+20)","v":{"v":259,"d":"259.00 Ft"}},{"$f":"IFERROR(Költség[[#This Row],[Becsült]]-Költség[[#This Row],[Tényleges]], \"\")","v":{"v":-9,"d":"-9.00 Ft"}},{"$f":"IFERROR(Költség[[#This Row],[Mennyiség]]*Költség[[#This Row],[Becsült]], \"\")","v":{"v":250,"d":"250.00 Ft"}},{"$f":"IFERROR(Költség[[#This Row],[Mennyiség]]*Költség[[#This Row],[Tényleges]], \"\")","v":{"v":259,"d":"259.00 Ft"}},{"$f":"IFERROR(Költség[[#This Row],[Becsült ]]-Költség[[#This Row],[Tényleges ]], \"\")","v":{"v":-9,"d":"-9.00 Ft"}}]
[null,"Kád/zuhanykabin","Zuhanyajtók, zsanéros, normál kivitelű",1,{"v":200,"d":"200.00 Ft"},{"v":219,"d":"219.00 Ft"},{"$f":"IFERROR(Költség[[#This Row],[Becsült]]-Költség[[#This Row],[Tényleges]], \"\")","v":{"v":-19,"d":"-19.00 Ft"}},{"$f":"IFERROR(Költség[[#This Row],[Mennyiség]]*Költség[[#This Row],[Becsült]], \"\")","v":{"v":200,"d":"200.00 Ft"}},{"$f":"IFERROR(Költség[[#This Row],[Mennyiség]]*Költség[[#This Row],[Tényleges]], \"\")","v":{"v":219,"d":"219.00 Ft"}},{"$f":"IFERROR(Költség[[#This Row],[Becsült ]]-Költség[[#This Row],[Tényleges ]], \"\")","v":{"v":-19,"d":"-19.00 Ft"}}]
[null,"Kád/zuhanykabin","Zuhanyfej, normál kivitelű",1,{"v":50,"d":"50.00 Ft"},{"v":67,"d":"67.00 Ft"},{"$f":"IFERROR(Költség[[#This Row],[Becsült]]-Költség[[#This Row],[Tényleges]], \"\")","v":{"v":-17,"d":"-17.00 Ft"}},{"$f":"IFERROR(Költség[[#This Row],[Mennyiség]]*Költség[[#This Row],[Becsült]], \"\")","v":{"v":50,"d":"50.00 Ft"}},{"$f":"IFERROR(Költség[[#This Row],[Mennyiség]]*Költség[[#This Row],[Tényleges]], \"\")","v":{"v":67,"d":"67.00 Ft"}},{"$f":"IFERROR(Költség[[#This Row],[Becsült ]]-Költség[[#This Row],[Tényleges ]], \"\")","v":{"v":-17,"d":"-17.00 Ft"}}]
[null,"Kád/zuhanykabin","Kád fali panel, normál kivitelű",1,{"v":200,"d":"200.00 Ft"},{"v":219,"d":"219.00 Ft"},{"$f":"IFERROR(Költség[[#This Row],[Becsült]]-Költség[[#This Row],[Tényleges]], \"\")","v":{"v":-19,"d":"-19.00 Ft"}},{"$f":"IFERROR(Költség[[#This Row],[Mennyiség]]*Költség[[#This Row],[Becsült]], \"\")","v":{"v":200,"d":"200.00 Ft"}},{"$f":"IFERROR(Költség[[#This Row],[Mennyiség]]*Költség[[#This Row],[Tényleges]], \"\")","v":{"v":219,"d":"219.00 Ft"}},{"$f":"IFERROR(Költség[[#This Row],[Becsült ]]-Költség[[#This Row],[Tényleges ]], \"\")","v":{"v":-19,"d":"-19.00 Ft"}}]
[null,"Szekrények","Orvosi szekrény, 60 cm, luxus",1,{"v":200,"d":"200.00 Ft"},{"v":215,"d":"215.00 Ft"},{"$f":"IFERROR(Költség[[#This Row],[Becsült]]-Költség[[#This Row],[Tényleges]], \"\")","v":{"v":-15,"d":"-15.00 Ft"}},{"$f":"IFERROR(Költség[[#This Row],[Mennyiség]]*Költség[[#This Row],[Becsült]], \"\")","v":{"v":200,"d":"200.00 Ft"}},{"$f":"IFERROR(Költség[[#This Row],[Mennyiség]]*Költség[[#This Row],[Tényleges]], \"\")","v":{"v":215,"d":"215.00 Ft"}},{"$f":"IFERROR(Költség[[#This Row],[Becsült ]]-Költség[[#This Row],[Tényleges ]], \"\")","v":{"v":-15,"d":"-15.00 Ft"}}]
[null,"Szekrények","Öltözőasztal modul, 75 cm, normál kivitelű",2,{"v":100,"d":"100.00 Ft"},{"v":112,"d":"112.00 Ft"},{"$f":"IFERROR(Költség[[#This Row],[Becsült]]-Költség[[#This Row],[Tényleges]], \"\")","v":{"v":-12,"d":"-12.00 Ft"}},{"$f":"IFERROR(Költség[[#This Row],[Mennyiség]]*Költség[[#This Row],[Becsült]], \"\")","v":{"v":200,"d":"200.00 Ft"}},{"$f":"IFERROR(Költség[[#This Row],[Mennyiség]]*Költség[[#This Row],[Tényleges]], \"\")","v":{"v":224,"d":"224.00 Ft"}},{"$f":"IFERROR(Költség[[#This Row],[Becsült ]]-Költség[[#This Row],[Tényleges ]], \"\")","v":{"v":-24,"d":"-24.00 Ft"}}]
[null,"Munkalapok","Kerámiacsempe, luxus (menny. m-ben)",5,{"v":22.5,"d":"22.50 Ft"},{"v":42,"d":"42.00 Ft"},{"$f":"IFERROR(Költség[[#This Row],[Becsült]]-Költség[[#This Row],[Tényleges]], \"\")","v":{"v":-19.5,"d":"-19.50 Ft"}},{"$f":"IFERROR(Költség[[#This Row],[Mennyiség]]*Költség[[#This Row],[Becsült]], \"\")","v":{"v":112.5,"d":"112.50 Ft"}},{"$f":"IFERROR(Költség[[#This Row],[Mennyiség]]*Költség[[#This Row],[Tényleges]], \"\")","v":{"v":210,"d":"210.00 Ft"}},{"$f":"IFERROR(Költség[[#This Row],[Becsült ]]-Költség[[#This Row],[Tényleges ]], \"\")","v":{"v":-97.5,"d":"-97.50 Ft"}}]
[null,"Csapok","Csap, kád, normál kivitelű",1,{"v":90,"d":"90.00 Ft"},{"v":92,"d":"92.00 Ft"},{"$f":"IFERROR(Költség[[#This Row],[Becsült]]-Költség[[#This Row],[Tényleges]], \"\")","v":{"v":-2,"d":"-2.00 Ft"}},{"$f":"IFERROR(Költség[[#This Row],[Mennyiség]]*Költség[[#This Row],[Becsült]], \"\")","v":{"v":90,"d":"90.00 Ft"}},{"$f":"IFERROR(Költség[[#This Row],[Mennyiség]]*Költség[[#This Row],[Tényleges]], \"\")","v":{"v":92,"d":"92.00 Ft"}},{"$f":"IFERROR(Költség[[#This Row],[Becsült ]]-Költség[[#This Row],[Tényleges ]], \"\")","v":{"v":-2,"d":"-2.00 Ft"}}]
[null,"Csapok","Csap, zuhany, egykaros, normál kivitelű)",1,{"v":115,"d":"115.00 Ft"},{"v":118,"d":"118.00 Ft"},{"$f":"IFERROR(Költség[[#This Row],[Becsült]]-Költség[[#This Row],[Tényleges]], \"\")","v":{"v":-3,"d":"-3.00 Ft"}},{"$f":"IFERROR(Költség[[#This Row],[Mennyiség]]*Költség[[#This Row],[Becsült]], \"\")","v":{"v":115,"d":"115.00 Ft"}},{"$f":"IFERROR(Költség[[#This Row],[Mennyiség]]*Költség[[#This Row],[Tényleges]], \"\")","v":{"v":118,"d":"118.00 Ft"}},{"$f":"IFERROR(Költség[[#This Row],[Becsült ]]-Költség[[#This Row],[Tényleges ]], \"\")","v":{"v":-3,"d":"-3.00 Ft"}}]
[null,"Csapok","Mosdó csaptelep, normál kivitelű",1,{"v":95,"d":"95.00 Ft"},{"v":97,"d":"97.00 Ft"},{"$f":"IFERROR(Költség[[#This Row],[Becsült]]-Költség[[#This Row],[Tényleges]], \"\")","v":{"v":-2,"d":"-2.00 Ft"}},{"$f":"IFERROR(Költség[[#This Row],[Mennyiség]]*Költség[[#This Row],[Becsült]], \"\")","v":{"v":95,"d":"95.00 Ft"}},{"$f":"IFERROR(Költség[[#This Row],[Mennyiség]]*Költség[[#This Row],[Tényleges]], \"\")","v":{"v":97,"d":"97.00 Ft"}},{"$f":"IFERROR(Költség[[#This Row],[Becsült ]]-Költség[[#This Row],[Tényleges ]], \"\")","v":{"v":-2,"d":"-2.00 Ft"}}]
[null,"Burkolás","Kerámiacsempe, normál kivitelű (menny. n.m-ben)",35,{"v":12,"d":"12.00 Ft"},{"v":22,"d":"22.00 Ft"},{"$f":"IFERROR(Költség[[#This Row],[Becsült]]-Költség[[#This Row],[Tényleges]], \"\")","v":{"v":-10,"d":"-10.00 Ft"}},{"$f":"IFERROR(Költség[[#This Row],[Mennyiség]]*Költség[[#This Row],[Becsült]], \"\")","v":{"v":420,"d":"420.00 Ft"}},{"$f":"IFERROR(Költség[[#This Row],[Mennyiség]]*Költség[[#This Row],[Tényleges]], \"\")","v":{"v":770,"d":"770.00 Ft"}},{"$f":"IFERROR(Költség[[#This Row],[Becsült ]]-Költség[[#This Row],[Tényleges ]], \"\")","v":{"v":-350,"d":"-350.00 Ft"}}]
[null,"Hardver","Törülközőtartó, normál kivitelű",2,{"v":15,"d":"15.00 Ft"},{"v":25,"d":"25.00 Ft"},{"$f":"IFERROR(Költség[[#This Row],[Becsült]]-Költség[[#This Row],[Tényleges]], \"\")","v":{"v":-10,"d":"-10.00 Ft"}},{"$f":"IFERROR(Költség[[#This Row],[Mennyiség]]*Költség[[#This Row],[Becsült]], \"\")","v":{"v":30,"d":"30.00 Ft"}},{"$f":"IFERROR(Költség[[#This Row],[Mennyiség]]*Költség[[#This Row],[Tényleges]], \"\")","v":{"v":50,"d":"50.00 Ft"}},{"$f":"IFERROR(Költség[[#This Row],[Becsült ]]-Költség[[#This Row],[Tényleges ]], \"\")","v":{"v":-20,"d":"-20.00 Ft"}}]
[null,"Hardver","WC-papír tartó",1,{"v":10,"d":"10.00 Ft"},{"v":23,"d":"23.00 Ft"},{"$f":"IFERROR(Költség[[#This Row],[Becsült]]-Költség[[#This Row],[Tényleges]], \"\")","v":{"v":-13,"d":"-13.00 Ft"}},{"$f":"IFERROR(Költség[[#This Row],[Mennyiség]]*Költség[[#This Row],[Becsült]], \"\")","v":{"v":10,"d":"10.00 Ft"}},{"$f":"IFERROR(Költség[[#This Row],[Mennyiség]]*Költség[[#This Row],[Tényleges]], \"\")","v":{"v":23,"d":"23.00 Ft"}},{"$f":"IFERROR(Költség[[#This Row],[Becsült ]]-Költség[[#This Row],[Tényleges ]], \"\")","v":{"v":-13,"d":"-13.00 Ft"}}]
[null,"Világítás","Süllyesztett lámpák, normál kivitelű",4,{"v":25,"d":"25.00 Ft"},{"v":44,"d":"44.00 Ft"},{"$f":"IFERROR(Költség[[#This Row],[Becsült]]-Költség[[#This Row],[Tényleges]], \"\")","v":{"v":-19,"d":"-19.00 Ft"}},{"$f":"IFERROR(Költség[[#This Row],[Mennyiség]]*Költség[[#This Row],[Becsült]], \"\")","v":{"v":100,"d":"100.00 Ft"}},{"$f":"IFERROR(Költség[[#This Row],[Mennyiség]]*Költség[[#This Row],[Tényleges]], \"\")","v":{"v":176,"d":"176.00 Ft"}},{"$f":"IFERROR(Költség[[#This Row],[Becsült ]]-Költség[[#This Row],[Tényleges ]], \"\")","v":{"v":-76,"d":"-76.00 Ft"}}]
[null,"Mosdókagylók","WC, normál kivitelű",2,{"v":60,"d":"60.00 Ft"},{"v":73,"d":"73.00 Ft"},{"$f":"IFERROR(Költség[[#This Row],[Becsült]]-Költség[[#This Row],[Tényleges]], \"\")","v":{"v":-13,"d":"-13.00 Ft"}},{"$f":"IFERROR(Költség[[#This Row],[Mennyiség]]*Költség[[#This Row],[Becsült]], \"\")","v":{"v":120,"d":"120.00 Ft"}},{"$f":"IFERROR(Költség[[#This Row],[Mennyiség]]*Költség[[#This Row],[Tényleges]], \"\")","v":{"v":146,"d":"146.00 Ft"}},{"$f":"IFERROR(Költség[[#This Row],[Becsült ]]-Költség[[#This Row],[Tényleges ]], \"\")","v":{"v":-26,"d":"-26.00 Ft"}}]
[null,"Egyéb",null,1,{"v":20,"d":"20.00 Ft"},{"v":37,"d":"37.00 Ft"},{"$f":"IFERROR(Költség[[#This Row],[Becsült]]-Költség[[#This Row],[Tényleges]], \"\")","v":{"v":-17,"d":"-17.00 Ft"}},{"$f":"IFERROR(Költség[[#This Row],[Mennyiség]]*Költség[[#This Row],[Becsült]], \"\")","v":{"v":20,"d":"20.00 Ft"}},{"$f":"IFERROR(Költség[[#This Row],[Mennyiség]]*Költség[[#This Row],[Tényleges]], \"\")","v":{"v":37,"d":"37.00 Ft"}},{"$f":"IFERROR(Költség[[#This Row],[Becsült ]]-Költség[[#This Row],[Tényleges ]], \"\")","v":{"v":-17,"d":"-17.00 Ft"}}]
[null,"Részösszeg",null,null,{"$f":"SUBTOTAL(109,Költség[Becsült])","v":{"v":1464.5,"d":"1,464.50 Ft"}},{"$f":"SUBTOTAL(109,Költség[Tényleges])","v":{"v":1664,"d":"1,664.00 Ft"}},{"$f":"SUBTOTAL(109,Költség[Különbség])","v":{"v":-199.5,"d":"-199.50 Ft"}},{"$f":"SUBTOTAL(109,Költség[[Becsült ]])","v":{"v":2212.5,"d":"2,212.50 Ft"}},{"$f":"SUBTOTAL(109,Költség[[Tényleges ]])","v":{"v":2922,"d":"2,922.00 Ft"}},{"$f":"SUBTOTAL(109,Költség[[Különbség ]])","v":{"v":-709.5,"d":"-709.50 Ft"}}]
[null,"Váratlan költségek (plusz 30% becsült)",null,null,{"$f":"IFERROR(Költség[[#Totals],[Becsült]]*0.3, \"\")","v":{"v":439.34999999999997,"d":"439.35 Ft"}},null,null,{"$f":"IFERROR(Költség[[#Totals],[Becsült ]]*0.3, \"\")","v":{"v":663.75,"d":"663.75 Ft"}}]
[null,"Teljes költség",null,null,{"$f":"IFERROR(SUM(E21:E21), \"\")","v":{"v":1464.5,"d":"1,464.50 Ft"}},null,null,{"$f":"IFERROR(SUM(Költség[[#Totals],[Becsült ]],Többlet), \"\")","v":{"v":2876.25,"d":"2,876.25 Ft"}}]